bitfinex/quotes_SOLUSD_20260109
["timestamp","ask_amount","ask_price","bid_price","bid_amount"]
[1767926820015,17.96795847,139.14,139.07,0.67179902]
[1767926820016,0.71345784,139.11,139.08,7.86178064]
[1767926820827,0.71345784,139.11,139.08,11.34440282]
[1767926822134,0.71345784,139.11,139.08,7.86178064]
[1767926823130,0.71345784,139.11,139.08,11.34440282]
[1767926823635,0.6932919,139.13,139.1,3.48262218]
[1767926823937,0.6932919,139.14,139.12,3.48262218]
[1767926824626,0.1,139.15,139.12,10.67066128]
[1767926825009,0.7932919,139.15,139.12,10.67066128]
[1767926829117,0.7932919,139.15,139.12,7.1880391]
[1767926829313,0.7932919,139.15,139.12,10.67066128]
[1767926829846,0.7932919,139.15,139.12,7.1880391]
[1767926831035,0.7932919,139.15,139.12,7.84822097]
[1767926832729,0.71042944,139.13,139.1,7.18894332]
[1767926832921,0.71042944,139.13,139.1,7.84912519]
[1767926835846,3.03486569,139.15,139.12,0.66018187]
[1767926836226,0.71042944,139.14,139.11,7.18853067]
[1767926838126,0.71042944,139.14,139.11,7.84871254]
[1767926838438,0.71042944,139.14,139.11,10.07314879]
[1767926838638,0.1,139.15,139.12,0.66018187]
[1767926838943,0.81042944,139.15,139.12,0.66018187]
[1767926839327,0.71042944,139.14,139.11,7.18853067]
[1767926840035,0.71042944,139.13,139.1,7.18893246]
[1767926840334,0.71042944,139.13,139.1,10.07355058]
[1767926840848,0.71042944,139.13,139.1,10.01355058]
[1767926842225,0.71042944,139.13,139.1,7.78911433]
[1767926842528,0.71042944,139.13,139.1,10.01355058]
[1767926847543,2.32443625,139.15,139.1,10.01355058]
[1767926847544,0.1,139.15,139.13,0.66018187]
[1767926847746,0.1,139.16,139.14,0.45337871]
[1767926848641,0.81042944,139.16,139.13,9.41151864]
[1767926849651,0.81042944,139.16,139.13,10.07170051]
[1767926852148,0.81042944,139.16,139.13,7.84726426]
[1767926852446,0.81042944,139.16,139.13,7.18708239]
[1767926852646,0.81042944,139.16,139.13,7.86658966]
[1767926853431,0.81042944,139.16,139.12,7.86739548]
[1767926853753,0.65957109,139.15,139.12,7.86739548]
[1767926853946,0.65957109,139.15,139.12,7.18788821]
[1767926857252,8.15957109,139.14,139.12,7.18788821]
[1767926857650,0.65957109,139.14,139.12,7.18788821]
[1767926863356,0.65957109,139.15,139.12,7.86739548]
[1767926869248,0.5,139.14,139.12,7.86739548]
[1767926869638,1.15957109,139.14,139.12,7.18788821]
[1767926871853,0.65957109,139.13,139.1,0.67950727]
[1767926875152,0.65957109,139.11,139.08,0.67950727]
[1767926875452,0.65957109,139.13,139.1,0.67950727]
[1767926876869,0.65957109,139.13,139.09,0.67950727]
[1767926877173,0.65957109,139.12,139.09,0.67950727]
[1767926878050,0.65957109,139.11,139.08,7.18975217]
[1767926878252,0.65957109,139.11,139.08,0.67950727]
[1767926879268,0.65957109,139.11,139.08,7.86959699]
[1767926883174,9.41216869,139.13,139.09,0.71125573]
[1767926883175,0.66149863,139.13,139.09,0.71125573]
[1767926885180,1.16149863,139.14,139.11,0.71125573]
[1767926887051,1.16149863,139.14,139.1,9.41350885]
[1767926887052,0.68962411,139.13,139.1,9.41350885]
[1767926887363,0.68962411,139.13,139.1,10.10734125]
[1767926888781,0.68962411,139.13,139.1,7.882905]
[1767926889563,0.68962411,139.13,139.09,0.6938324]
[1767926890776,0.68962411,139.11,139.07,69.98445582]
[1767926890982,0.68962411,139.11,139.07,7.88445582]
[1767926891290,0.68962411,139.11,139.08,0.6938324]
[1767926891579,0.68962411,139.11,139.08,7.88368719]
[1767926896780,0.68962411,139.11,139.08,0.6938324]
[1767926898384,0.68962411,139.11,139.06,13.8138324]
[1767926898385,4.16621786,139.11,139.06,13.8138324]
[1767926898597,0.68962411,139.09,139.05,73.74608924]
[1767926898882,0.65962412,139.09,139.06,0.6938324]
[1767926899675,10.66481735,139.12,139.07,0.6938324]
[1767926900684,0.68962411,139.11,139.07,7.8844471]
[1767926903178,0.68962411,139.11,139.07,0.6938324]
[1767926903572,0.68962411,139.1,139.07,0.6938324]
[1767926906369,0.68962411,139.1,139.06,11.36138177]
[1767926912504,0.68962411,139.1,139.06,11.35051568]
[1767926913102,0.68962411,139.1,139.05,11.35105043]
[1767926914091,0.67904752,139.09,139.05,11.35105043]
[1767926915391,0.67904752,139.09,139.05,4.15956006]
[1767926915897,0.67904752,139.09,139.05,11.35121038]
[1767926918501,0.67904752,139.09,139.01,62.1]
[1767926918708,0.67904752,139.06,139.02,7.87573628]
[1767926918909,0.64904753,139.06,139.02,7.19276997]
[1767926919210,0.64904753,139.06,139.02,0.68296631]
[1767926919412,13.12,139.08,139.01,0.68296631]
[1767926919575,13.12,139.08,139.01,11.35328289]
[1767926919576,3.47659375,139.06,139.01,11.35328289]
[1767926920580,10.66776993,139.06,139.01,11.35328289]
[1767926920802,0.67904752,139.05,139.01,11.35328289]
[1767926921004,0.64904753,139.05,139.01,11.35328289]
[1767926921385,0.64904753,139.05,139.01,4.15956006]
[1767926921584,0.64904753,139.05,139.0,4.15956006]
[1767926921786,3.47659375,139.05,139.0,4.15956006]
[1767926922186,3.47659375,139.05,139.0,0.68296631]
[1767926922903,7.87173974,139.03,139.0,0.68296631]
[1767926923402,0.67904752,139.07,139.03,0.68296631]
[1767926923606,0.67904752,139.07,139.05,3.47659375]
[1767926924196,0.67904752,139.07,139.03,0.68296631]
[1767926924392,0.67904752,139.07,139.04,3.47659375]
[1767926925903,0.67904752,139.07,139.03,0.68296631]
[1767926926113,0.67904752,139.07,139.04,3.47659375]
[1767926926696,0.67904752,139.06,139.01,11.35293431]
[1767926927198,0.67904752,139.06,139.01,7.87634056]
[1767926927500,0.67904752,139.06,139.01,11.35293431]
[1767926929413,0.67904752,139.04,138.99,0.68296631]
[1767926929608,0.67904752,139.03,138.99,7.8772335]
[1767926930214,0.67904752,139.03,138.99,7.19426719]
[1767926930386,0.67904752,139.03,138.99,7.8772335]
[1767926931218,0.5,139.02,138.99,7.8772335]
[1767926931420,0.5,139.02,138.99,11.35382725]
[1767926932426,0.5,139.02,139.0,3.47659375]
[1767926933104,0.5,139.02,138.99,11.35382725]
[1767926933931,1.17904752,139.02,138.99,7.8772335]
[1767926934232,1.17904752,139.02,138.99,11.35382725]
[1767926934530,0.5,139.02,138.99,11.35382725]
[1767926936127,1.17904752,139.02,138.99,11.35382725]
[1767926936325,1.17904752,139.02,138.99,7.8772335]
[1767926936511,1.17904752,139.02,138.99,11.35382725]
[1767926937521,0.67904752,139.01,138.98,0.2]
[1767926937827,0.64904753,139.01,138.98,0.2]
[1767926938420,10.67038552,139.01,138.97,0.2]
[1767926939712,0.67904752,139.0,138.97,0.2]
[1767926939913,0.67904752,139.0,138.95,10.67341331]
[1767926940321,0.67904752,139.0,138.95,11.35637962]
[1767926940823,0.67904752,139.0,138.94,7.88031768]
[1767926941022,0.67904752,139.0,138.95,3.47659375]
[1767926941220,0.67904752,139.0,138.94,7.19735137]
[1767926941415,0.67904752,139.0,138.95,3.47659375]
[1767926941615,0.67904752,139.0,138.96,3.47659375]
[1767926941825,0.67904752,139.0,138.95,3.47659375]
[1767926943028,0.67904752,139.0,138.95,10.67307523]
[1767926945438,0.67904752,139.0,138.96,3.47659375]
[1767926946210,0.67904752,139.0,138.96,4.19793105]
[1767926948713,0.67904752,139.0,138.96,0.7213373]
[1767926949039,0.64904753,139.0,138.96,11.39420838]
[1767926949537,0.64904753,139.0,138.96,7.91761463]
[1767926949736,0.64904753,139.0,138.96,11.39420838]
[1767926951125,7.19445337,139.0,138.96,0.7213373]
[1767926951438,0.60904751,138.99,138.96,4.19793105]
[1767926953731,0.60904751,139.01,138.98,0.69581117]
[1767926953932,0.60904751,139.01,138.98,3.47659375]
[1767926954936,0.60904751,139.01,138.97,4.17240492]
[1767926955327,0.60904751,139.01,138.98,0.69581117]
[1767926956645,0.60904751,139.01,138.97,0.69581117]
[1767926956830,0.60904751,139.01,138.97,4.17240492]
[1767926957232,0.60904751,139.01,138.97,0.69581117]
[1767926962845,0.60904751,139.01,138.97,2.9241622]
[1767926963739,0.60904751,139.01,138.97,0.69581117]
[1767926966555,7.19376253,139.01,138.95,7.89261437]
[1767926966758,0.60904751,139.0,138.95,0.69581117]
[1767926967057,0.60904751,138.99,138.95,0.69581117]
[1767926967246,0.60904751,138.99,138.96,0.69581117]
[1767926967647,0.60904751,139.0,138.97,0.69581117]
[1767926969935,2.83739854,139.0,138.96,0.69581117]
[1767926970134,2.83739854,138.99,138.96,0.69581117]
[1767926970354,15.97739854,138.99,138.96,0.69581117]
[1767926971061,13.74904751,138.99,138.96,0.69581117]
[1767926971474,13.71904752,138.99,138.96,0.69581117]
[1767926975556,13.14,138.99,138.96,0.69581117]
[1767926976065,13.14,138.99,138.97,0.67422124]
[1767926977372,0.55345708,139.0,138.97,7.86997516]
[1767926977559,13.69345708,139.0,138.97,7.86997516]
[1767926980281,13.69345708,139.0,138.97,0.67422124]
[1767926980587,0.12433453,138.99,138.96,7.87042636]
[1767926981284,13.14,139.0,138.97,0.67422124]
[1767926981484,13.239,139.0,138.97,0.67422124]
[1767926986383,0.57424704,138.99,138.96,0.67422124]
[1767926993189,7.5,138.98,138.96,0.67422124]
[1767926993377,7.47000001,138.98,138.96,0.67422124]
[1767926994381,6.02000001,138.98,138.95,9.42516045]
[1767926994583,3.60534633,138.98,138.96,7.1961273]
[1767926994792,4.30202282,138.98,138.96,7.1961273]
[1767926995094,0.69667649,138.99,138.97,0.67422124]
[1767926995595,0.69667649,139.01,138.98,0.67422124]
[1767926995894,0.69667649,139.01,138.96,0.67422124]
[1767926996680,0.69667649,139.0,138.96,0.67422124]
[1767926996876,7.1938854,139.01,138.92,0.87422124]
[1767926996877,0.69667649,138.96,138.92,0.87422124]
[1767926997077,13.14,138.96,138.92,0.87422124]
[1767926997276,22.56493844,138.96,138.92,0.87422124]
[1767926997497,22.56493844,138.96,138.92,0.2]
[1767926997498,2.22835103,138.95,138.92,0.2]
[1767926999070,2.92502752,138.95,138.92,0.2]
[1767926999490,0.69667649,138.92,138.9,0.2]
[1767927000008,2.92502752,138.95,138.91,0.67422124]
[1767927000294,13.83667649,138.95,138.91,0.67422124]
[1767927000700,16.06502752,138.95,138.91,0.67422124]
[1767927001576,2.22835103,138.93,138.91,0.67422124]
[1767927001792,2.22835103,138.93,138.9,0.87422124]
[1767927001971,2.92502752,138.94,138.91,0.67422124]
[1767927003201,0.69667649,138.94,138.91,0.67422124]
[1767927003403,2.92502752,138.94,138.91,0.67422124]
[1767927005697,2.22835103,138.93,138.91,0.67422124]
[1767927006002,2.92502752,138.94,138.91,0.67422124]
[1767927006399,0.5,138.93,138.91,0.67422124]
[1767927006598,2.72835103,138.93,138.91,0.67422124]
[1767927007387,2.22835103,138.92,138.91,0.67422124]
[1767927010188,0.65819793,138.91,138.89,0.2]
[1767927010389,2.22835103,138.9,138.88,0.70084904]
[1767927010607,2.22835103,138.9,138.87,15.08223149]
[1767927010608,2.22835103,138.89,138.87,15.08223149]
[1767927010811,2.88769381,138.89,138.87,14.38138245]
[1767927011190,0.5,138.93,138.89,0.70084904]
[1767927011394,2.22835103,138.96,138.93,0.60095247]
[1767927011903,0.65934278,138.93,138.87,14.38138245]
[1767927012105,0.65934278,138.91,138.87,14.98233492]
[1767927012302,0.65934278,138.89,138.87,14.38138245]
[1767927012603,2.88769381,138.89,138.87,14.38138245]
[1767927012814,0.65934278,138.88,138.87,14.38138245]
[1767927013310,2.88769381,138.89,138.87,14.38138245]
[1767927015405,0.65934278,138.9,138.87,14.98233492]
[1767927015587,2.88769381,138.91,138.87,14.98233492]
[1767927015984,2.22835103,138.91,138.88,0.60095247]
[1767927016391,2.22835103,138.9,138.88,0.60095247]
[1767927016590,7.85809567,138.92,138.88,0.60095247]
[1767927016795,2.22835103,138.92,138.89,0.60095247]
[1767927018624,3.4868051,138.92,138.89,0.60095247]
[1767927019218,11.34429205,138.93,138.89,0.60095247]
[1767927021502,4.14614788,138.92,138.88,0.60095247]
[1767927022015,0.65934278,138.92,138.88,0.60095247]
[1767927022609,7.8577731,138.92,138.88,0.60095247]
[1767927023914,0.65934278,138.92,138.88,0.60095247]
[1767927024216,11.3443995,138.93,138.88,0.60095247]
[1767927024930,7.8575944,138.93,138.88,0.60095247]
[1767927025099,3.4868051,138.92,138.88,0.60095247]
[1767927025828,11.3443995,138.93,138.88,0.60095247]
[1767927026127,0.65934278,138.92,138.88,0.60095247]
[1767927026507,0.65934278,138.92,138.88,4.08775757]
[1767927027717,0.65934278,138.92,138.89,0.60095247]
[1767927028107,7.5,138.91,138.89,0.60095247]
[1767927032122,6.89904753,138.91,138.87,14.38138245]
[1767927032313,7.55839031,138.91,138.87,14.38138245]
[1767927032812,0.65934278,138.91,138.87,14.38138245]
[1767927033202,0.66548981,138.9,138.87,14.38138245]
[1767927035020,0.66548981,138.89,138.86,0.2]
[1767927035226,0.66548981,138.88,138.86,0.2]
[1767927035521,0.63548982,138.88,138.86,0.2]
[1767927036117,10.68704998,138.89,138.86,0.2]
[1767927036311,7.19957962,138.9,138.87,0.02999999]
[1767927038326,7.86506943,138.9,138.87,0.02999999]
[1767927040622,7.86506943,138.9,138.86,0.2]
[1767927040623,0.66548981,138.89,138.86,0.2]
[1767927040830,0.66548981,138.88,138.86,0.2]
[1767927041414,4.15229491,138.88,138.86,0.2]
[1767927042148,0.66548981,138.87,138.85,0.2]
[1767927043828,8.16548981,138.87,138.85,0.2]
[1767927044526,4.15229491,138.86,138.85,0.2]
[1767927044710,0.63548982,138.86,138.82,0.45999998]
[1767927045316,0.63548982,138.86,138.83,0.25999998]
[1767927046113,4.12229492,138.86,138.83,0.25999998]
[1767927046317,4.12229492,138.86,138.82,0.45999998]
[1767927047425,0.66548981,138.82,138.78,0.25999998]
[1767927047816,4.15229491,138.83,138.79,0.25999998]
[1767927048018,7.20166928,138.86,138.83,0.25999998]
[1767927048215,0.66548981,138.85,138.81,3.74680508]
[1767927048629,0.66548981,138.85,138.82,3.4868051]
[1767927048823,0.66548981,138.85,138.81,7.46406192]
[1767927049321,0.66548981,138.85,138.81,3.74680508]
[1767927051838,11.35384408,138.86,138.82,0.25999998]
[1767927052145,7.86703898,138.86,138.82,0.25999998]
[1767927052439,0.66548981,138.85,138.82,0.25999998]
[1767927052734,0.66548981,138.85,138.81,3.4868051]
[1767927052735,0.66548981,138.85,138.81,0.25999998]
[1767927053536,0.66548981,138.85,138.8,3.4868051]
[1767927053537,0.66548981,138.83,138.8,0.25999998]
[1767927053941,0.66548981,138.83,138.78,16.88680508]
[1767927054126,0.66548981,138.82,138.78,16.88680508]
[1767927054325,0.63548982,138.82,138.78,16.88680508]
[1767927054724,0.63548982,138.82,138.78,16.6268051]
[1767927054921,0.63548982,138.82,138.78,13.42999997]
[1767927055126,0.63548982,138.82,138.78,16.91680507]
[1767927055735,7.20313261,138.83,138.79,3.77680507]
[1767927055934,34.62972725,138.87,138.82,3.77680507]
[1767927056323,0.66548981,138.86,138.82,0.28999997]
[1767927056534,0.66548981,138.86,138.82,3.77680507]
[1767927056735,0.66548981,138.86,138.82,0.28999997]
[1767927057039,0.66548981,138.85,138.81,3.77680507]
[1767927058637,0.66548981,138.85,138.81,0.28999997]
[1767927060323,0.66548981,138.84,138.8,3.4868051]
[1767927060543,0.66548981,138.84,138.79,3.77680507]
[1767927061043,0.66548981,138.83,138.79,3.77680507]
[1767927061449,7.86762554,138.85,138.81,0.28999997]
[1767927061646,11.35443064,138.85,138.81,0.28999997]
[1767927061861,7.86762554,138.85,138.81,3.77680507]
[1767927062154,7.86705528,138.86,138.82,0.28999997]
[1767927062319,11.35386038,138.86,138.82,0.28999997]
[1767927062524,0.7238483,138.85,138.81,0.28999997]
[1767927062723,0.7238483,138.85,138.82,0.28999997]
[1767927062940,11.41221887,138.86,138.82,0.28999997]
[1767927063853,7.92541377,138.86,138.82,0.28999997]
[1767927064432,11.41221887,138.86,138.82,0.28999997]
[1767927064931,0.7238483,138.86,138.82,0.28999997]
[1767927066840,7.92536274,138.86,138.82,0.28999997]
[1767927067950,11.41216784,138.86,138.82,0.28999997]
[1767927068847,7.86723768,138.87,138.83,0.28999997]
[1767927069056,7.20098396,138.87,138.83,0.28999997]
[1767927069234,7.86723768,138.87,138.83,0.28999997]
[1767927070078,0.66625372,138.93,138.86,3.4868051]
[1767927070263,0.66625372,138.93,138.88,3.4868051]
[1767927070559,0.66625372,138.93,138.87,3.77680507]
[1767927070560,0.66625372,138.92,138.87,3.77680507]
[1767927070746,0.66625372,138.91,138.87,3.4868051]
[1767927071130,0.66625372,138.88,138.84,0.28432314]
[1767927071342,0.66625372,138.88,138.84,10.97363568]
[1767927073863,0.66625372,138.88,138.85,3.4868051]
[1767927075553,0.66625372,138.89,138.85,3.77680507]
[1767927076246,0.66625372,138.89,138.85,10.9787587]
[1767927077145,0.66625372,138.89,138.85,3.77680507]
[1767927078735,0.66625372,138.89,138.85,10.9788191]
[1767927079858,0.66625372,138.89,138.85,3.77680507]
[1767927080552,0.66625372,138.89,138.85,2.5223243]
[1767927080853,0.66625372,138.87,138.83,20.63287468]
[1767927081057,0.66625372,138.87,138.83,22.86519901]
[1767927081448,0.66625372,138.87,138.83,9.72519901]
[1767927081651,0.66625372,138.87,138.83,0.28999997]
[1767927081845,0.66625372,138.87,138.82,2.5223243]
[1767927082160,0.66625372,138.87,138.84,2.23232433]
[1767927082368,0.66625372,138.89,138.85,2.23232433]
[1767927082535,0.66625372,138.89,138.85,2.5223243]
[1767927084258,0.66625372,138.89,138.86,2.23232433]
[1767927084456,21.00584712,138.9,138.87,2.23232433]
[1767927085269,21.00584712,138.9,138.86,0.28999997]
[1767927085566,21.00584712,138.9,138.86,2.5223243]
[1767927085751,0.66625372,138.89,138.86,2.5223243]
[1767927087164,13.14,138.9,138.83,31.14677506]
[1767927087165,0.66625372,138.9,138.87,2.5223243]
[1767927088271,0.66625372,138.9,138.87,2.23232433]
[1767927091346,0.66625372,138.9,138.86,9.72381905]
[1767927091771,0.66625372,138.9,138.87,0.28999997]
[1767927092157,0.66625372,138.9,138.87,2.5223243]
[1767927092549,0.71461722,138.92,138.88,2.5223243]
[1767927092858,0.71461722,138.92,138.89,2.23232433]
[1767927093058,0.71461722,138.92,138.89,2.5223243]
[1767927096678,0.71461722,138.94,138.89,9.7220817]
[1767927100577,0.71461722,138.94,138.89,9.43208173]
[1767927101176,0.71461722,138.93,138.88,9.72275501]
[1767927101974,0.71461722,138.93,138.89,0.28999997]
[1767927107285,0.71461722,138.93,138.89,2.5223243]
[1767927109885,0.71461722,138.92,138.89,2.5223243]
[1767927110975,7.19745683,138.94,138.89,2.5223243]
[1767927110976,0.71461722,138.93,138.89,9.72222783]
[1767927111176,0.71461722,138.93,138.9,2.23232433]
[1767927111373,13.85461722,138.95,138.92,0.28999997]
[1767927111590,0.71461722,138.95,138.92,2.5223243]
[1767927113276,0.71461722,138.95,138.92,0.28999997]
[1767927113470,0.71461722,138.95,138.91,9.72079736]
[1767927113879,0.71461722,138.95,138.91,7.48847303]
[1767927114080,0.71461722,138.95,138.91,9.72079736]
[1767927114786,0.71461722,138.94,138.9,2.23232433]
[1767927115286,0.71461722,138.94,138.9,2.5223243]
[1767927116786,0.71461722,138.94,138.9,9.72156883]
[1767927118186,0.71461722,138.94,138.91,0.28999997]
[1767927118388,0.71461722,138.95,138.91,2.5223243]
[1767927119088,0.71461722,138.95,138.91,9.72091106]
[1767927120997,0.71461722,138.95,138.92,7.48828983]
[1767927122274,0.71461722,138.96,138.93,0.28999997]
[1767927122473,0.71461722,138.96,138.93,2.5223243]
[1767927123397,0.81764528,138.99,138.96,0.28999997]
[1767927123773,0.81764528,138.99,138.95,0.28999997]
[1767927124594,0.71764528,138.98,138.95,0.28999997]
[1767927125176,0.71764528,138.98,138.94,2.5223243]
[1767927125373,0.71764528,138.98,138.95,2.23232433]
[1767927125800,0.71764528,138.98,138.95,7.48677545]
[1767927125999,0.71764528,138.98,138.95,9.71909978]
[1767927126374,0.71764528,138.98,138.95,7.48677545]
[1767927127680,0.8064815,138.99,138.96,0.28999997]
[1767927128280,0.8064815,138.99,138.96,7.48624192]
[1767927129900,0.1,138.99,138.96,9.71856625]
[1767927130095,0.1,138.99,138.97,2.5223243]
[1767927130286,0.7064815,139.02,138.98,2.5223243]
[1767927130595,0.7064815,139.02,138.98,2.23232433]
[1767927130800,0.7064815,139.02,138.98,2.52232429]
[1767927131591,0.7064815,139.02,138.98,9.71721075]
[1767927133377,0.7064815,139.02,138.98,9.65721075]
[1767927138295,0.7064815,139.02,138.98,9.71721075]
[1767927138494,0.7064815,139.02,138.99,7.19473734]
[1767927138879,0.7064815,139.02,138.99,7.13473734]
[1767927141884,0.7064815,139.02,138.99,7.4247373]
[1767927142483,0.7064815,139.02,138.99,7.3647373]
[1767927142706,0.8064815,139.03,139.0,0.28999996]
[1767927144402,0.8064815,139.03,139.0,7.48416601]
[1767927145709,0.8064815,139.03,139.0,10.96528913]
[1767927149411,0.1,139.03,139.02,3.48112312]
[1767927149712,0.7064815,139.05,139.02,3.77112308]
[1767927149901,0.7064815,139.06,139.03,3.48112312]
[1767927150410,0.7064815,139.06,139.02,3.77112308]
[1767927150804,0.7064815,139.06,139.02,10.96386145]
[1767927152695,0.7064815,139.06,139.03,3.48112312]
[1767927153220,0.7064815,139.06,139.03,10.67362096]
[1767927153937,0.7064815,139.06,139.03,7.19249784]
[1767927154306,0.7064815,139.06,139.03,7.13249784]
[1767927156501,0.7064815,139.06,139.03,10.90362092]
[1767927156701,0.81081034,139.07,139.04,3.77112308]
[1767927157807,0.81081034,139.07,139.04,0.28999996]
[1767927158119,0.81081034,139.07,139.03,10.90362092]
[1767927159217,0.81081034,139.07,139.04,3.48112312]
[1767927159722,0.81081034,139.07,139.04,3.77112308]
[1767927161103,0.81081034,139.07,139.04,10.96283993]
[1767927161504,0.5436978,139.05,139.01,0.66836865]
[1767927161702,3.48112312,139.06,139.01,7.19339729]
[1767927161917,3.48112312,139.06,139.02,7.19307392]
[1767927162116,3.58112312,139.07,139.02,7.19307392]
[1767927162426,3.48112312,139.06,139.02,7.19307392]
[1767927163705,0.61630224,139.05,139.02,7.19307392]
[1767927163905,0.61630224,139.05,139.01,7.86192695]
[1767927167430,0.61630224,139.05,139.02,0.66836865]
[1767927171636,4.09742536,139.05,139.02,0.66836865]
[1767927171842,0.61112921,139.03,139.0,0.66836865]
[1767927172637,8.11112921,139.03,139.0,0.66836865]
[1767927172814,0.61112921,139.03,139.0,0.66836865]
[1767927173134,4.09742536,139.04,139.0,0.66836865]
[1767927174244,0.61630224,139.04,139.01,0.66836865]
[1767927174430,0.61630224,139.05,139.02,0.66836865]
[1767927177545,0.5,139.04,139.02,0.66836865]
[1767927179161,0.5,139.04,139.01,7.86207116]
[1767927183947,0.5,139.04,139.01,0.66836865]
[1767927184445,0.60605914,139.01,138.97,0.9660338]
[1767927184643,0.57605915,139.01,138.98,0.68171066]
[1767927185352,0.5,139.04,138.99,4.16283378]
[1767927185650,0.5,139.04,139.01,7.87519921]
[1767927186648,1.08630225,139.04,139.01,7.87519921]
[1767927187662,1.08630225,139.04,139.01,7.19348855]
[1767927189546,0.0693,139.03,139.01,7.19348855]
[1767927190040,0.58113223,139.02,138.99,7.19459106]
[1767927190544,0.58113223,139.02,138.99,0.69608796]
[1767927190749,0.0693,139.03,139.0,0.69608796]
[1767927193156,3.55042312,139.03,139.0,0.69608796]
[1767927198857,0.0693,139.03,139.0,0.69608796]
[1767927205650,2.29731257,139.03,139.0,0.69608796]
[1767927206957,9.49006978,139.03,139.0,0.69608796]
[1767927207361,2.29731257,139.03,139.0,0.69608796]
[1767927208577,0.0693,139.03,139.0,0.69608796]
[1767927210456,2.29731257,139.03,139.0,0.69608796]
[1767927211070,0.07441832,139.01,138.98,0.69608796]
[1767927211256,0.04441833,139.01,138.98,0.69608796]
[1767927216472,2.78431483,139.0,138.97,0.69303216]
[1767927217251,40.5443216,139.02,138.94,0.14216157]
[1767927217451,40.5443216,139.02,138.91,18.68997477]
[1767927217452,2.22801257,138.95,138.91,0.69303216]
[1767927217680,2.22801257,138.93,138.91,0.69303216]
[1767927217862,2.19801254,138.93,138.91,0.69303216]
[1767927218064,2.22801257,138.94,138.91,0.69303216]
[1767927218775,2.22801257,138.93,138.91,0.69303216]
[1767927219274,13.14,138.97,138.91,0.69303216]
[1767927219482,2.22801257,138.93,138.91,0.69303216]
[1767927219863,9.72801257,138.93,138.91,0.69303216]
[1767927220184,13.14,138.97,138.91,0.69303216]
[1767927220185,2.22801257,138.94,138.91,0.69303216]
[1767927220383,2.22801257,138.95,138.91,0.69303216]
[1767927220584,2.22801257,138.94,138.91,0.69303216]
[1767927223785,2.22801257,138.95,138.92,0.69303216]
[1767927224984,0.5,138.94,138.92,0.69303216]
[1767927225986,0.47,138.94,138.93,0.69303216]
[1767927229381,22.56395967,138.97,138.94,0.69303216]
[1767927229580,22.66295967,138.97,138.94,0.69303216]
[1767927229773,2.22801257,138.96,138.94,0.69303216]
[1767927230359,20.4349471,138.97,138.94,0.69303216]
[1767927230563,17.98776802,138.99,138.95,0.69303216]
[1767927230564,2.22801257,138.99,138.95,0.69303216]
[1767927231287,2.32701257,138.99,138.95,0.69303216]
[1767927231785,9.52189326,138.99,138.95,0.69303216]
[1767927233891,9.88961317,138.98,138.95,0.69303216]
[1767927234675,2.22801257,138.98,138.95,0.69303216]
[1767927235892,9.89292001,138.99,138.95,0.69303216]
[1767927236970,0.099,138.98,138.95,0.69303216]
[1767927237171,2.32701257,138.98,138.95,0.69303216]
[1767927237492,0.46629,138.97,138.94,0.69303216]
[1767927237697,0.46629,138.97,138.93,10.11874503]
[1767927238269,0.46629,138.97,138.94,7.19734036]
[1767927241903,0.47,138.99,138.96,0.69303216]
[1767927242107,0.47,138.99,138.96,2.92104473]
[1767927242276,0.47,139.01,138.97,2.92104473]
[1767927242475,13.14,139.03,138.98,2.92104473]
[1767927242687,13.14,139.03,139.0,0.70405104]
[1767927242996,13.14,139.03,138.98,0.70405104]
[1767927242997,2.22801257,139.01,138.98,0.70405104]
[1767927243874,2.32701257,139.01,138.98,0.70405104]
[1767927246600,0.46265382,138.98,138.95,7.19667911]
[1767927247397,0.46265382,138.98,138.95,7.86543319]
[1767927250302,0.47,138.99,138.95,10.09344576]
[1767927251804,9.89179734,139.01,138.96,0.66875408]
[1767927252102,9.52079734,139.01,138.96,0.66875408]
[1767927252281,9.52079734,139.01,138.97,0.66875408]
[1767927253394,0.099,139.01,138.97,0.66875408]
[1767927253612,2.32701257,139.01,138.97,0.66875408]
[1767927254727,0.099,139.01,138.97,0.66875408]
[1767927254915,2.32701257,139.01,138.97,0.66875408]
[1767927256291,9.52088894,139.01,138.97,0.66875408]
[1767927256609,2.22801257,139.01,138.97,0.66875408]
[1767927257810,2.22801257,139.0,138.97,0.66875408]
[1767927258016,2.22801257,138.99,138.95,0.66875408]
[1767927258594,0.1026729,139.0,138.95,0.66875408]
[1767927258796,2.69066639,138.99,138.95,0.66875408]
[1767927259513,0.5,138.98,138.95,0.66875408]
[1767927261602,4.08998601,138.98,138.94,7.86578563]
[1767927261805,4.08998601,138.98,138.94,0.66875408]
[1767927262726,3.4837133,138.97,138.94,0.66875408]
[1767927263296,11.28550047,138.98,138.94,0.66875408]
[1767927266023,4.08998601,138.98,138.94,0.66875408]
[1767927266717,0.5,138.98,138.95,0.66875408]
[1767927266909,3.9837133,138.98,138.95,0.66875408]
[1767927269512,4.19094805,138.96,138.91,3.4837133]